bitfinex/quotes_ETHUSD_20260213
["timestamp","ask_amount","ask_price","bid_price","bid_amount"]
[1770994755330,1.312,1990.7,1990.0,0.001]
[1770994755528,1.25590274,1990.6,1990.0,0.001]
[1770994755933,1.25577657,1990.8,1990.0,0.001]
[1770994756231,0.002,1990.9,1990.0,0.64557044]
[1770994756535,0.002,1990.9,1990.2,0.64457044]
[1770994756730,0.002,1990.9,1990.3,1.78157044]
[1770994756938,1.25548846,1991.3,1990.3,1.78157044]
[1770994757125,1.25548846,1991.3,1990.3,2.68657044]
[1770994757322,14.83775961,1991.8,1990.3,2.68657044]
[1770994757323,9.81671275,1991.8,1990.3,2.68657044]
[1770994757542,1.25531285,1991.6,1990.5,20.76523344]
[1770994757700,1.25531285,1991.6,1990.4,1.25602893]
[1770994758035,1.25531285,1991.6,1990.5,2.042]
[1770994758233,1.25531285,1991.6,1990.4,1.25602893]
[1770994758532,1.25531285,1991.6,1990.5,1.137]
[1770994759036,10.46788965,1991.4,1990.1,5.02470458]
[1770994759227,10.46788965,1991.4,1990.2,1.137]
[1770994759425,1.25546125,1991.3,1990.2,2.3931036]
[1770994759623,1.25520911,1991.7,1990.3,0.64457044]
[1770994759822,1.25520911,1991.7,1990.2,2.3931036]
[1770994759823,1.25520911,1991.7,1990.5,6.83283144]
[1770994760031,1.25520911,1991.7,1990.6,6.07431544]
[1770994760206,1.25520911,1991.7,1990.6,0.64457044]
[1770994760922,1.2571868,1991.8,1990.6,0.64457044]
[1770994761123,1.25714723,1991.8,1990.8,0.64457044]
[1770994761356,1.25714723,1991.8,1990.9,2.041]
[1770994761525,0.002,1991.8,1991.0,1.25565042]
[1770994762116,0.002,1991.8,1991.0,2.39165042]
[1770994762354,0.002,1991.8,1991.0,3.03622086]
[1770994762720,0.00153886,1992.0,1991.1,0.64457044]
[1770994763041,0.6551769,1992.6,1991.2,19.449266]
[1770994763042,5.01919378,1992.4,1991.2,19.449266]
[1770994763248,5.01919378,1992.4,1991.0,2.39318928]
[1770994763411,5.67237068,1992.4,1991.1,2.041]
[1770994763611,5.67237068,1992.4,1991.2,1.90009474]
[1770994763612,5.01919378,1992.4,1991.2,1.90009474]
[1770994764035,0.002,1992.5,1991.2,1.90009474]
[1770994764214,1.25476811,1992.4,1991.3,0.64457044]
[1770994764618,1.25476811,1992.4,1991.4,2.041]
[1770994765042,1.25476811,1992.4,1991.2,1.2555243]
[1770994765043,1.90794501,1992.4,1991.2,1.2555243]
[1770994765242,1.25476811,1992.4,1991.5,1.136]
[1770994765741,0.002,1992.5,1991.5,2.39129143]
[1770994765915,0.6551769,1992.5,1991.3,1.25543762]
[1770994766114,0.6551769,1992.5,1991.5,1.136]
[1770994766354,10.46788965,1992.3,1991.1,1.25556364]
[1770994766542,1.314,1992.4,1991.3,1.136]
[1770994766917,1.314,1992.4,1991.3,1.78057044]
[1770994767246,0.002,1992.5,1991.3,1.78057044]
[1770994767422,0.002,1992.5,1991.4,0.64457044]
[1770994767606,0.002,1992.5,1991.5,1.25533517]
[1770994767807,0.002,1992.5,1991.5,1.89990561]
[1770994768242,0.002,1992.5,1991.3,6.15734069]
[1770994768243,0.002,1992.3,1991.3,5.02172181]
[1770994768555,0.002,1992.3,1991.6,1.136]
[1770994768756,0.002,1992.4,1991.7,0.64457044]
[1770994769611,0.002,1992.4,1991.7,5.66515483]
[1770994769818,0.002,1992.4,1991.8,1.89971653]
[1770994770956,0.002,1992.4,1991.9,1.137]
[1770994771174,0.002,1992.4,1991.8,1.25514609]
[1770994771318,0.002,1992.4,1991.9,1.137]
[1770994771764,0.002,1992.4,1991.9,2.39207722]
[1770994771972,0.002,1992.4,1991.8,0.905]
[1770994771973,0.002,1992.4,1991.5,0.56894064]
[1770994772175,0.002,1992.4,1991.5,2.16033244]
[1770994772333,0.60155436,1992.4,1991.5,1.137]
[1770994772677,0.60155436,1992.4,1991.1,1.25558736]
[1770994772877,0.60155436,1992.4,1991.3,1.137]
[1770994773372,0.002,1992.4,1991.3,1.137]
[1770994774129,1.25676811,1992.4,1991.4,1.25539821]
[1770994774685,1.85632247,1992.4,1991.2,1.25547767]
[1770994774831,0.59955436,1992.1,1991.0,0.00253886]
[1770994775027,9.81471275,1992.2,1991.0,2.39518218]
[1770994775239,0.59955436,1992.3,1991.0,2.39518218]
[1770994775443,0.59955436,1992.3,1991.0,1.13953886]
[1770994775638,0.59955436,1992.3,1991.0,2.39517991]
[1770994776302,1.85444844,1992.2,1991.0,2.39517991]
[1770994776886,0.57820715,1992.1,1991.0,2.39517792]
[1770994777783,1.25489408,1992.2,1991.1,0.57270329]
[1770994778144,5.01957634,1992.3,1991.2,1.2555243]
[1770994778349,1.2568144,1992.4,1991.3,1.47770329]
[1770994778547,1.2568144,1992.4,1991.4,1.70970329]
[1770994779278,1.2568144,1992.4,1991.4,1.137]
[1770994780246,0.002,1992.1,1991.5,1.25533517]
[1770994780444,0.002,1992.1,1991.1,5.02209722]
[1770994780445,0.58020715,1992.1,1991.2,1.138]
[1770994780674,0.002,1992.1,1991.2,1.138]
[1770994782492,0.002,1992.1,1991.2,2.39347464]
[1770994783560,0.002,1992.1,1991.1,5.02209722]
[1770994783561,0.58020715,1992.1,1991.1,1.137]
[1770994783912,0.58020715,1992.1,1991.2,1.137]
[1770994784260,0.58020715,1992.1,1991.1,1.137]
[1770994784456,1.25502008,1992.0,1991.2,1.2555243]
[1770994785250,0.57820715,1991.9,1991.1,1.137]
[1770994785448,1.25502008,1992.0,1991.1,2.39258636]
[1770994786355,1.83322723,1992.0,1991.0,1.25814353]
[1770994786586,1.83322723,1992.0,1991.1,1.137]
[1770994786786,1.25699446,1992.1,1991.1,1.70970329]
[1770994787666,1.25699446,1992.1,1991.1,1.137]
[1770994787869,1.25699446,1992.1,1991.1,4.927]
[1770994788499,0.002,1992.1,1991.2,1.2555243]
[1770994789211,0.002,1992.1,1991.2,1.82822759]
[1770994789718,0.002,1992.1,1991.2,5.0455243]
[1770994789864,0.002,1992.4,1991.4,0.57270329]
[1770994790390,0.002,1992.4,1991.5,2.041]
[1770994790570,0.002,1992.4,1991.6,1.82797543]
[1770994790771,0.002,1992.5,1991.7,0.57270329]
[1770994791500,0.002,1993.2,1991.9,0.57270329]
[1770994791501,1.25593306,1993.0,1991.9,0.57270329]
[1770994791721,0.00153886,1993.0,1992.0,2.041]
[1770994791919,0.00153886,1993.0,1992.1,0.57270329]
[1770994792211,1.25594101,1993.0,1992.0,2.041]
[1770994792414,0.00153886,1993.0,1992.1,0.57270329]
[1770994792708,0.00153886,1993.0,1992.2,1.25489408]
[1770994792911,0.00153886,1993.0,1992.3,0.57270329]
[1770994793079,0.002,1993.2,1992.3,0.57270329]
[1770994793268,5.01595465,1993.7,1992.2,1.25489408]
[1770994793269,1.25399613,1993.7,1992.5,0.57270329]
[1770994793467,1.25399613,1993.7,1992.6,1.135]
[1770994793664,1.83220328,1993.7,1992.6,1.135]
[1770994793903,1.25399613,1993.7,1992.6,1.70770329]
[1770994794136,0.002,1993.0,1992.6,1.135]
[1770994794269,0.002,1993.0,1992.2,1.135]
[1770994794475,0.002,1993.0,1992.0,5.92655631]
[1770994794476,0.002,1993.0,1992.0,2.39152415]
[1770994794692,0.002,1993.0,1992.0,1.25652415]
[1770994794897,0.002,1993.0,1992.1,1.135]
[1770994795505,0.002,1993.0,1992.1,1.70770329]
[1770994796109,0.002,1993.0,1992.1,0.57270329]
[1770994796302,0.002,1993.0,1992.2,1.134]
[1770994796703,0.002,1993.0,1992.2,2.38885863]
[1770994797510,0.002,1993.0,1992.2,1.134]
[1770994798013,0.002,1993.0,1992.0,1.25652818]
[1770994798188,0.002,1993.0,1992.1,1.134]
[1770994798394,0.58020715,1993.0,1992.1,1.134]
[1770994798611,0.002,1993.0,1992.1,1.134]
[1770994799516,0.002,1993.0,1992.1,1.70670329]
[1770994800017,0.002,1993.0,1992.2,0.57270329]
[1770994800228,1.25394994,1993.7,1992.4,0.57270329]
[1770994800429,1.25592575,1993.8,1992.6,0.57270329]
[1770994800719,1.25592575,1993.8,1992.8,0.55911033]
[1770994800893,0.002,1993.8,1993.0,0.55911033]
[1770994801096,0.002,1993.8,1993.1,1.132]
[1770994801282,1.51578416,1994.5,1993.4,0.55911033]
[1770994801489,0.002,1994.8,1993.6,0.55911033]
[1770994801820,0.00353886,1995.0,1993.9,0.55911033]
[1770994802030,0.26219424,1995.4,1994.1,0.55911033]
[1770994802200,0.5707884,1996.8,1995.0,0.55911033]
[1770994802388,1.2520659,1996.7,1995.2,6.06239]
[1770994802592,14.82451524,1997.0,1995.5,1.81192917]
[1770994802593,0.00153886,1997.0,1995.5,1.81192917]
[1770994803128,0.00153886,1997.0,1995.6,14.96045533]
[1770994803326,0.00153886,1997.0,1995.7,2.037]
[1770994803527,0.00153886,1997.0,1995.8,1.133]
[1770994803729,0.00153886,1997.0,1995.4,5.01127536]
[1770994803730,0.57232726,1997.0,1995.4,1.25283626]
[1770994803898,0.1024,1996.5,1995.0,0.90553886]
[1770994804102,0.5707884,1996.2,1995.0,0.00153886]
[1770994804299,0.5707884,1996.0,1995.0,0.00153886]
[1770994804560,0.5707884,1996.0,1993.7,5.01574617]
[1770994804561,0.6731884,1995.5,1993.7,1.25391294]
[1770994804830,0.6731884,1995.5,1993.6,5.01598267]
[1770994804831,2.55588162,1995.4,1994.1,2.07488]
[1770994805050,2.55588162,1995.4,1994.1,4.845588]
[1770994805201,1.25288162,1995.4,1994.2,2.036]
[1770994805401,5.01152651,1995.5,1994.2,2.036]
[1770994805402,1.2528594,1995.5,1994.2,2.036]
[1770994805905,5.010565,1995.8,1994.3,10.862418]
[1770994806247,0.00153886,1996.0,1994.7,0.74596657]
[1770994806405,1.25406132,1996.0,1994.8,1.131]
[1770994806732,1.25406132,1996.0,1994.9,2.035]
[1770994806733,0.00153886,1996.0,1994.9,2.035]
[1770994806937,0.00153886,1996.0,1995.0,1.131]
[1770994807312,0.00153886,1996.0,1994.9,1.09085624]
[1770994807313,1.2520659,1996.7,1995.2,0.55911033]
[1770994807513,1.8228543,1996.7,1995.1,6.874879]
[1770994807729,1.8228543,1996.7,1995.3,1.131]
[1770994808046,1.8228543,1996.7,1995.0,0.00153886]
[1770994808047,11.15866347,1996.5,1995.0,0.00153886]
[1770994808253,0.6731884,1996.4,1995.1,1.131]
[1770994808734,1.25231678,1996.3,1995.2,1.131]
[1770994809427,1.25231678,1996.3,1995.1,1.13]
[1770994810030,1.25210194,1996.7,1995.2,2.65429033]
[1770994810335,1.25210194,1996.7,1995.1,1.13]
[1770994810336,1.82283246,1996.8,1995.1,1.13]
[1770994810536,0.5707884,1996.7,1995.1,5.055018]
[1770994810833,0.5707884,1996.2,1995.0,0.00153886]
[1770994811235,0.6731884,1996.1,1995.0,0.00153886]
[1770994811629,0.5707884,1995.9,1995.0,0.00153886]
[1770994811827,0.5707884,1995.6,1994.1,2.38267392]
[1770994812027,0.6731884,1995.9,1994.2,3.274252]
[1770994812205,0.6731884,1995.9,1994.1,3.28567392]
[1770994812412,0.6731884,1995.9,1994.1,3.84478425]
[1770994812730,0.5707884,1995.7,1994.3,1.25357268]
[1770994812925,0.5707884,1995.7,1994.3,2.15657268]
[1770994813514,0.5707884,1995.7,1994.4,1.13]
[1770994813818,0.5707884,1995.5,1994.2,1.13]
[1770994814020,1.8707884,1995.4,1994.2,1.13]
[1770994814425,0.5707884,1995.3,1994.0,0.00153886]
[1770994814631,1.25300721,1995.2,1994.0,0.00153886]
[1770994815414,1.2529898,1995.3,1994.1,23.547428]
[1770994815636,1.25275606,1995.6,1994.2,0.55911033]
[1770994815824,1.25275606,1995.6,1994.3,9.324583]
[1770994816030,1.25275606,1995.6,1994.0,0.00153886]
[1770994816031,1.25256776,1995.9,1994.5,5.183876]
[1770994816340,0.00153886,1996.0,1994.8,24.46460033]
[1770994816645,0.002,1996.9,1995.3,0.55911033]
[1770994816819,0.002,1996.9,1995.2,1.43986345]
[1770994816820,0.002,1996.9,1995.7,25.33335457]
[1770994817018,0.002,1996.9,1995.8,0.55911033]
[1770994817222,0.002,1996.9,1995.9,2.033]
[1770994817448,0.002,1996.9,1996.0,2.036]
[1770994817649,0.002,1996.9,1996.1,1.133]
[1770994818730,0.002,1996.9,1996.1,2.38541467]
[1770994819040,0.002,1996.9,1995.8,1.25258338]
[1770994819340,0.5727884,1996.8,1995.5,0.903]
[1770994819560,0.5727884,1996.8,1995.3,1.25290147]
[1770994820515,0.6731884,1996.7,1995.0,5.01392975]
[1770994820722,0.6731884,1996.7,1995.1,1.131]
[1770994820723,0.6731884,1996.5,1995.1,1.131]
[1770994821421,1.25212861,1996.6,1995.2,3.842496]
[1770994821618,1.25212861,1996.6,1995.2,2.823]
[1770994821946,5.01051447,1996.8,1995.2,2.823]
[1770994821947,0.002,1996.8,1995.8,0.55911033]
[1770994822248,1.25395523,1996.9,1995.9,0.903]
[1770994822549,1.82474363,1996.9,1995.5,1.132]
[1770994822747,1.82474363,1996.9,1995.5,2.38477225]
[1770994823621,1.82474363,1996.9,1995.5,1.132]
[1770994823939,1.82474363,1996.9,1995.5,2.38481667]
[1770994824110,1.82474363,1996.9,1995.5,2.38480879]
[1770994824315,1.82474363,1996.9,1995.5,1.25280879]
[1770994824316,0.5707884,1996.8,1995.5,1.25280879]
[1770994824534,0.5707884,1996.8,1995.4,2.38483938]
[1770994824846,3.1228543,1996.7,1995.3,1.25291774]
[1770994825430,0.6731884,1996.6,1995.0,0.00153886]
[1770994825624,0.6731884,1996.2,1995.0,0.00153886]
[1770994825821,0.6731884,1996.0,1995.0,0.00153886]
[1770994826131,0.6731884,1996.0,1994.9,0.001]
[1770994826356,0.67472726,1996.0,1994.9,0.001]
[1770994826721,1.82348169,1995.7,1994.9,0.001]
[1770994827652,0.10393886,1996.0,1995.0,25.589388]
[1770994827653,0.00153886,1996.0,1995.0,25.589388]
[1770994827820,0.5707884,1996.7,1995.1,4.63927494]
[1770994827821,1.25217149,1996.6,1995.1,4.63927494]
[1770994828021,1.82295989,1996.6,1995.2,1.58059594]
[1770994828248,0.5707884,1996.5,1995.2,1.131]
[1770994828648,1.25217149,1996.6,1995.2,1.131]
[1770994828837,0.1024,1996.6,1995.3,1.25294441]
[1770994829150,0.6731884,1996.6,1995.2,2.38398204]
[1770994829350,0.6731884,1996.6,1995.0,1.25463192]
[1770994830020,0.6731884,1996.6,1995.0,1.25466243]
[1770994830854,0.6731884,1996.6,1995.1,0.45214113]
[1770994831158,1.2520659,1996.8,1995.3,8.088871]
[1770994831159,1.2520032,1996.8,1995.3,8.088871]
[1770994831355,0.1024,1996.5,1995.0,0.00153886]
[1770994831653,0.51675884,1996.5,1995.3,0.001]
[1770994831952,0.61915884,1996.3,1995.3,0.001]
[1770994832657,0.61915884,1996.1,1995.0,0.00153886]
[1770994832856,1.301,1996.2,1995.0,0.00153886]
[1770994832857,2.82315884,1996.0,1995.0,0.00153886]
[1770994833059,1.76945213,1995.7,1994.8,0.001]
[1770994833232,0.61915884,1995.6,1994.4,0.001]
[1770994833554,0.51675884,1995.2,1994.0,0.00253886]
[1770994833751,0.1024,1994.8,1994.0,0.00253886]
[1770994834129,0.1024,1994.8,1993.2,0.903]
[1770994834130,0.61915884,1994.8,1993.2,0.903]
[1770994834457,0.61915884,1994.6,1993.2,0.903]
[1770994834658,0.1024,1994.4,1993.2,0.903]
[1770994835036,1.25357268,1994.3,1993.2,0.903]
[1770994835233,0.5182977,1996.0,1993.6,0.1024]
[1770994835449,0.5182977,1996.0,1993.5,0.55953246]
[1770994835450,1.25256776,1995.9,1994.5,2.764]
[1770994835756,1.25256776,1995.9,1994.4,1.46253246]
[1770994835930,1.25256776,1995.9,1994.5,4.569]
[1770994836136,2.55656776,1995.9,1994.1,0.903]
[1770994836334,2.55656776,1995.9,1994.0,0.90453886]
[1770994836335,0.1024,1995.8,1994.0,0.90453886]
[1770994836646,0.1024,1995.6,1994.0,0.90453886]
[1770994837355,0.1024,1995.6,1994.0,1.2552576]
[1770994837356,0.1024,1995.4,1994.0,1.2552576]
[1770994837533,0.1024,1995.4,1994.0,0.00153886]
[1770994837534,0.70953081,1995.1,1994.0,0.00153886]
[1770994838060,0.70953081,1994.7,1993.0,0.00153886]
[1770994838264,0.1024,1994.5,1993.1,1.25432742]
[1770994838562,0.70953081,1994.5,1993.1,1.25432742]
[1770994839076,0.1024,1994.5,1993.1,1.25432742]
[1770994839378,1.25350982,1994.4,1993.0,0.00153886]
[1770994839578,3.46141521,1994.6,1993.2,21.583127]
[1770994839727,2.208,1994.6,1993.3,4.44402]
[1770994840065,2.208,1994.6,1993.4,3.897]
[1770994840232,3.46138833,1994.6,1993.3,2.037]
[1770994840432,3.46138833,1994.6,1993.0,0.00153886]
[1770994840956,3.46138833,1994.6,1993.1,6.452279]
[1770994841126,3.46138833,1994.6,1993.1,5.532664]
[1770994841328,3.46138833,1994.6,1993.2,1.25426449]
[1770994841561,5.01293431,1994.9,1993.3,21.463279]
[1770994841765,1.307,1994.8,1993.4,11.958477]
[1770994841925,1.307,1994.8,1993.4,10.472477]
[1770994842132,1.307,1994.8,1993.4,2.603]
[1770994842434,1.307,1994.8,1993.3,0.55669298]
[1770994842632,0.1024,1994.7,1993.2,1.25426449]
[1770994843455,1.25338413,1994.6,1993.0,0.00153886]
[1770994844641,1.25338413,1994.6,1993.0,0.55823184]
[1770994844854,1.25338413,1994.6,1993.2,6.997358]
[1770994845056,1.25338413,1994.6,1993.1,3.125608]
[1770994845459,1.25338413,1994.6,1993.2,1.25426449]
[1770994845658,2.56027392,1994.8,1993.5,25.06877898]
[1770994845859,2.56027392,1994.8,1993.5,0.55669298]
[1770994846458,1.307,1994.8,1993.5,0.55669298]
[1770994846668,1.307,1994.8,1993.5,2.59169298]
[1770994846965,2.56025919,1994.8,1993.5,2.59169298]
[1770994847564,2.56026158,1994.8,1993.6,1.25401284]
[1770994847867,1.307,1994.8,1993.6,1.25401284]
[1770994848093,0.00153886,1995.0,1993.8,0.55669298]
[1770994848239,1.25476135,1995.6,1994.2,0.55669298]
[1770994848433,0.002,1995.6,1994.4,16.14060098]
[1770994848738,0.002,1995.6,1994.2,2.034]
[1770994848739,0.002,1995.6,1994.8,16.821739]
[1770994849071,2.15719344,1996.5,1995.2,4.238]
[1770994849237,0.905,1996.5,1995.1,0.55669298]
[1770994849436,0.002,1996.7,1995.6,14.11883824]
[1770994849662,0.002,1996.7,1995.8,5.196]
[1770994850267,0.002,1996.7,1995.8,4.011]
[1770994850499,0.002,1996.7,1995.8,1.133]
[1770994850792,0.002,1996.9,1996.1,6.94058]
[1770994850936,0.002,1996.9,1996.0,0.55669298]
[1770994851140,0.002,1996.9,1996.2,1.133]
[1770994851336,0.002,1996.9,1996.1,1.133]
[1770994851569,0.002,1996.9,1996.3,1.25231678]
[1770994852062,0.00153886,1998.0,1996.5,0.55669298]
[1770994852238,1.25343925,1997.7,1996.5,0.55669298]
[1770994852442,0.002,1997.7,1996.6,1.133]
[1770994852642,0.002,1997.7,1996.5,1.45969298]
[1770994852643,1.25345273,1997.7,1996.5,0.55669298]
[1770994852851,1.25345273,1997.7,1996.3,1.25231678]
[1770994853076,0.002,1997.7,1996.4,17.147813]
[1770994853272,0.002,1997.7,1996.6,0.55669298]
[1770994853485,5.00430418,1998.3,1996.4,1.133]
[1770994853486,5.00345515,1998.7,1996.8,0.55669298]
[1770994853773,1.38222076,1998.8,1997.2,3.707895]
[1770994853985,1.38222076,1998.8,1997.3,15.465223]
[1770994854153,1.38222076,1998.8,1997.3,13.031149]
[1770994854355,1.98935157,1998.8,1997.4,1.134]
[1770994854536,0.60713081,1998.7,1997.2,1.134]
[1770994854740,0.70953081,1998.6,1997.0,0.00153886]
[1770994855553,0.1024,1998.4,1997.0,0.00153886]
[1770994855754,2.201,1998.3,1997.0,0.00153886]
[1770994856354,2.201,1998.3,1997.1,11.951966]
[1770994856555,2.201,1998.3,1997.1,2.468]
[1770994857059,2.201,1998.3,1997.0,0.00153886]
[1770994857450,0.60713081,1998.2,1997.0,0.00153886]
[1770994857654,1.25118862,1998.1,1997.0,0.00153886]
[1770994858279,0.1024,1998.0,1997.0,0.00153886]
[1770994858473,0.70953081,1998.0,1997.0,0.00153886]
[1770994858667,0.1024,1998.0,1997.0,0.00153886]
[1770994859656,1.25131387,1997.9,1997.0,0.00153886]
[1770994860156,0.60713081,1997.8,1997.0,0.00153886]
[1770994860357,4.05925682,1998.3,1997.0,0.00153886]
[1770994860673,0.1024,1998.1,1997.0,0.00153886]
[1770994861380,0.67831394,1998.1,1997.0,0.00153886]
[1770994861701,1.25143915,1997.7,1996.4,0.001]
[1770994861916,0.67831394,1997.5,1996.4,0.001]
[1770994862255,1.3974,1997.4,1996.4,0.001]
[1770994862564,1.25143915,1997.7,1996.4,0.001]
[1770994862791,1.295,1997.5,1996.4,0.001]
[1770994863796,0.902,1997.7,1996.5,9.930542]
[1770994864058,0.00153886,1998.0,1996.6,24.090478]
[1770994864218,0.00153886,1998.0,1996.9,0.58556787]
[1770994864508,0.00153886,1998.0,1997.2,17.463156]
[1770994864674,0.00153886,1998.0,1997.3,11.948545]
[1770994864874,0.00153886,1998.0,1997.3,11.12412]
[1770994865402,1.25296953,1998.5,1997.0,0.68796787]
[1770994865574,0.002,1998.5,1997.4,1.127]
[1770994865906,0.002,1998.5,1997.7,14.001216]
[1770994866108,0.002,1998.5,1997.6,1.2515018]
[1770994866803,0.002,1998.5,1997.3,1.25165697]
[1770994867019,1.97031394,1998.4,1997.0,1.25338082]
[1770994867378,1.3944,1998.4,1997.0,1.25338082]
[1770994867605,0.57591394,1998.2,1997.0,0.00153886]
[1770994867787,1.25137651,1997.8,1996.4,0.001]
[1770994867986,9.93659216,1997.2,1996.0,0.00153886]
[1770994868185,0.57591394,1997.4,1996.0,1.2540367]
[1770994868411,0.1024,1997.6,1996.0,1.2540367]
[1770994868879,0.67831394,1997.6,1996.0,1.2540367]
[1770994869300,0.67831394,1997.6,1996.1,2.344]
[1770994869612,0.1024,1997.3,1996.0,1.25403177]
[1770994869904,1.25175245,1997.2,1996.0,0.00153886]
[1770994870291,0.67831394,1997.1,1996.0,0.00153886]
[1770994870494,2.193,1997.0,1996.0,0.00153886]
[1770994871300,0.67831394,1996.9,1995.5,0.001]
[1770994871701,0.67831394,1996.9,1995.2,5.0118614]
[1770994871702,0.67831394,1996.4,1995.0,0.00153886]
[1770994871900,0.1024,1996.2,1995.0,0.00153886]
[1770994872288,0.1024,1996.2,1996.0,0.001]
[1770994872522,0.1024,1996.2,1995.0,0.00153886]
[1770994872738,0.1024,1996.2,1995.2,0.001]
[1770994873028,0.1024,1995.9,1995.2,0.001]
[1770994873545,0.67831394,1995.9,1995.0,0.00153886]
[1770994873834,0.1024,1995.7,1995.0,0.00153886]
[1770994873994,0.1024,1995.5,1994.1,1.25369841]
[1770994874194,0.1024,1995.5,1994.0,5.01636697]
[1770994874195,0.1024,1995.5,1994.0,1.2552741]
[1770994875241,0.1024,1995.3,1994.0,1.25527346]
[1770994875394,0.1024,1995.3,1994.0,0.00153886]
[1770994875907,1.25300721,1995.2,1993.5,0.32653423]
[1770994876223,0.00153886,1995.0,1993.2,12.769034]
[1770994876428,0.1024,1994.8,1993.2,6.099757]
[1770994876790,0.00153886,1995.0,1993.4,24.587388]
[1770994877097,0.00153886,1995.0,1993.6,3.912162]
[1770994877494,0.00153886,1995.0,1993.5,0.58556787]
[1770994877793,1.25325847,1994.8,1993.3,1.25420157]
[1770994877999,1.25325847,1994.8,1993.3,1.83976944]
[1770994879313,1.25325847,1994.8,1993.4,2.761255]
[1770994879524,1.2532274,1994.9,1993.5,0.58556787]
[1770994879832,0.00153886,1995.0,1993.8,1.83945491]
[1770994880124,0.00153886,1995.0,1993.8,1.25388704]
[1770994880534,0.67831394,1994.9,1993.1,5.01805799]
[1770994880709,0.1024,1994.8,1993.2,1.83983236]
[1770994881029,0.903,1994.7,1993.2,1.25426449]
[1770994881437,1.3984,1994.8,1993.4,5.4171]
[1770994881607,1.3984,1994.8,1993.4,3.516]
[1770994881807,1.2533213,1994.7,1993.5,1.25407574]
[1770994882022,2.65169916,1994.8,1993.5,1.25407574]
[1770994882527,2.65169916,1994.8,1993.2,1.25426449]
[1770994882704,3.2276131,1994.8,1993.2,1.25426449]
[1770994882904,0.1024,1994.6,1993.2,1.25426449]
[1770994883294,0.1024,1994.6,1993.1,5.01805799]
[1770994883295,0.57591394,1994.5,1993.1,1.25528123]
[1770994883639,0.67831394,1994.0,1993.1,0.001]
[1770994883796,1.25388704,1993.8,1993.1,0.001]
[1770994884211,7.21429776,1993.9,1993.5,0.001]
[1770994884212,1.296,1993.9,1993.5,0.001]
[1770994884426,0.903,1994.3,1993.5,0.001]
[1770994884610,1.296,1994.2,1993.5,0.001]
[1770994885597,2.54950982,1994.4,1993.5,0.001]
[1770994885799,1.296,1994.4,1993.5,0.001]
[1770994886127,1.25468229,1995.0,1993.6,0.58556787]
[1770994886702,1.25468229,1995.0,1993.7,3.644]
[1770994887039,1.25468229,1995.0,1993.7,4.940891]
[1770994887210,1.25468229,1995.0,1993.7,4.195649]
[1770994887527,1.25468229,1995.0,1993.7,7.849315]
[1770994887698,1.25468229,1995.0,1993.6,0.58556787]
[1770994887905,1.25468229,1995.0,1993.7,1.25394994]
[1770994889195,1.25468229,1995.0,1993.6,1.25397409]
[1770994889196,0.57591394,1994.9,1993.6,1.25397409]
[1770994889425,1.25468229,1995.0,1993.6,1.25397409]
[1770994890030,1.25468229,1995.0,1993.5,0.001]
[1770994891132,1.25468229,1995.0,1993.7,9.989836]
[1770994891303,1.25468229,1995.0,1993.7,8.255149]
[1770994891503,1.25468229,1995.0,1993.7,3.033228]
[1770994892036,0.00153886,1995.0,1994.1,7.656526]
[1770994892329,0.00153886,1995.0,1994.1,4.62833427]
[1770994892523,0.00153886,1995.0,1994.3,0.53233427]
[1770994893035,0.00153886,1995.0,1994.0,5.197]
[1770994893198,0.00153886,1995.0,1994.2,6.459794]
[1770994893404,0.00153886,1995.0,1994.2,3.997212]
[1770994893628,0.00153886,1995.0,1994.2,2.896228]
[1770994893830,0.00153886,1995.0,1993.9,1.25382416]
[1770994894334,0.00153886,1995.0,1994.1,15.52676527]
[1770994894513,0.903,1995.2,1994.2,0.53233427]
[1770994894717,1.295,1995.5,1994.2,0.53233427]
[1770994894918,2.5478304,1995.5,1994.3,0.53233427]
[1770994895244,1.295,1995.5,1994.4,3.959228]
[1770994895403,2.54782805,1995.5,1994.4,1.126]
[1770994895605,0.90453886,1996.0,1994.6,0.53233427]
[1770994895813,2.15704791,1996.0,1994.7,10.06618527]
[1770994896025,0.90453886,1996.0,1994.8,1.78559274]
[1770994896240,2.15705138,1996.0,1994.8,1.78559274]
[1770994896414,0.002,1994.9,1994.8,1.25325847]
[1770994896621,0.002,1995.0,1994.8,1.25325847]
[1770994896852,0.002,1995.0,1994.1,3.56725341]
[1770994897144,0.002,1995.0,1994.1,1.25369841]
[1770994897648,0.002,1995.0,1994.0,2.38125579]
[1770994897815,0.5255022,1995.0,1994.0,0.00153886]
[1770994898007,1.25319564,1994.9,1994.0,0.00153886]
[1770994898208,1.25517129,1995.0,1994.0,0.00153886]
[1770994898403,0.002,1995.0,1994.1,3.139977]
[1770994898732,0.002,1995.0,1994.2,23.29130461]
[1770994898910,5.01128122,1995.5,1994.3,4.593875]
[1770994899107,1.25464123,1995.8,1994.5,0.54399061]
[1770994899308,1.25464123,1995.8,1994.6,1.126]
[1770994899512,0.002,1995.8,1994.8,0.54399061]
[1770994900110,0.002,1995.8,1994.9,1.25319564]
[1770994900855,0.002,1995.8,1994.7,5.01320474]
[1770994901154,0.002,1995.8,1994.6,1.25338413]
[1770994901858,0.002,1995.8,1994.4,5.01385936]
[1770994902060,0.002,1995.8,1994.4,6.13885936]
[1770994902234,0.6279022,1995.8,1994.1,6.13956147]
[1770994902437,0.6279022,1995.8,1994.0,1.25523727]
[1770994902438,0.6259022,1995.3,1994.0,0.00153886]
[1770994902746,2.191,1995.2,1994.0,1.2552877]
[1770994903431,0.5235022,1995.1,1994.0,0.00153886]
[1770994903628,0.5235022,1995.1,1994.0,1.25529904]
[1770994903854,0.5235022,1995.1,1994.0,0.00153886]
[1770994904160,1.77663503,1995.0,1994.0,0.00153886]
[1770994904360,0.5235022,1994.9,1994.0,0.00153886]
[1770994904660,0.5235022,1994.9,1993.5,0.001]
[1770994904827,0.5235022,1994.5,1993.5,0.001]
[1770994905026,2.19,1994.4,1993.5,0.001]
[1770994905659,0.1024,1994.3,1993.5,0.001]